Cogmind - Beta 15 @@@ ROGUE MODE // 2025.08.15 @ 18:04:35 Player: eVander Result: Self-destructed Performance ------------- Evolutions (2) 1000 Regions Visited (3) 600 Robots Destroyed (25) 125 Value Destroyed (911) 911 Prototype IDs (1) 20 Alien Tech Used (0) 0 Bonus (0) 0 TOTAL SCORE: 2656 Bonus ------- None Cogmind --------- Core Integrity 53/550 Matter 300/300 Energy 28/100 System Corruption 0% Temperature Cool (9) Movement Rolling (95) Ox1 Location -8/Materials Parts ------- > --- POWER (1) -------- (None) > --- PROPULSION (4) --- Wheel > --- UTILITY (3) ------ Advanced Targeting Computer Advanced Targeting Computer Advanced Targeting Computer > --- WEAPON (3) ------- EM Pulse Cannon EM Pulse Cannon > --- INVENTORY (5) ---- Improved Heat Sink Small Storage Unit Sensor Array EM Pulse Cannon Peak State ------------ > --- POWER ------------ Ion Engine > --- PROPULSION ------- Compact Wheel Compact Wheel Subdweller Monowheel Subdweller Monowheel > --- UTILITY ---------- Small Storage Unit Advanced Visual Processing Unit Advanced Targeting Computer > --- WEAPON ----------- Heavy EM Shotgun Particle Cannon Particle Cannon > --- INVENTORY -------- Improved Heat Sink Sensor Array Advanced Targeting Computer Reflective Plating Pulse Rifle Particle Cannon Particle Cannon Ion Cannon [Rating: 24] Favorites ----------- Power Ion Engine Engine Ion Engine Power Core Light Nuclear Core Propulsion Subdweller Monowheel Treads Light Treads Wheel Subdweller Monowheel Utility Advanced Targeting Computer Device Sensor Array Storage Small Storage Unit Processor Advanced Targeting Computer Protection Reflective Plating Weapon Particle Cannon Energy Gun Heavy EM Shotgun Energy Cannon Particle Cannon Build | -11 -10 -10 -8 ------- Run | Yrd Mat Sub Mat Slots Evolved 4 | . . . 4 Power . | . . . . Propulsion 2 | . . . 2 Utility 1 | . . . 1 Weapon 1 | . . . 1 Parts Attached 36 | 5 3 2 26 Power 3 | 1 . . 2 Engine 2 | 1 . . 1 Core 1 | . . . 1 Reactor . | . . . . Propulsion 11 | 2 . 2 7 Treads 1 | . . . 1 Leg . | . . . . Wheel 10 | 2 . 2 6 Hover . | . . . . Flight . | . . . . Utility 10 | 1 1 . 8 Device 1 | . 1 . . Storage 1 | 1 . . . Processor 7 | . . . 7 Hackware . | . . . . Protection 1 | . . . 1 Artifact . | . . . . Weapon 12 | 1 2 . 9 Energy Gun 3 | 1 . . 2 Energy Cannon 9 | . 2 . 7 Ballistic Gun . | . . . . Ballistic Cannon . | . . . . Launcher . | . . . . Special Weapon . | . . . . Impact Weapon . | . . . . Slashing Weapon . | . . . . Piercing Weapon . | . . . . Special Melee Weapon . | . . . . Unidentified Prototypes 1 | . . . 1 Parts Lost 17 | . . . 17 Power 2 | . . . 2 Propulsion 8 | . . . 8 Utility 2 | . . . 2 Weapon 5 | . . . 5 Highest Loss Streak 6 | . . . 6 To Critical Strikes . | . . . . Average Backups 4 | . 2 4 4 Power . | . . . . Propulsion . | . . 1 . Utility 1 | . . . 2 Weapon 1 | . 2 3 1 Tool/Special . | . . . . Unused Backups 2 | . . . 2 Power . | . . . . Propulsion . | . . . . Utility 1 | . . . 1 Weapon 1 | . . . 1 Tool/Special . | . . . . Average Slot Usage (%) 81 | . 83 100 71 Engine 8 | . 14 14 4 Core 1 | . . . 2 Wheel 21 | . 28 28 17 Device 5 | . . 14 2 Storage 7 | . 14 14 4 Processor 9 | . . . 15 Protection 1 | . . . 3 Energy Gun 1 | . 1 . 2 Energy Cannon 21 | . 24 28 17 Peak Build Rating 24 | 5 9 11 24 Average Rating 14 | 2 7 10 18 On Entrance 6 | . 5 9 11 Naked Turns . | . . . . Heaviest Build 28 | 12 19 19 28 Greatest Support 76 | 32 32 40 76 Greatest Overweight (x) 6 | . . . 6 Average Overweight (x) . | . . . . Largest Inventory Capacity 8 | 8 8 8 8 Average Capacity 6 | 6 8 8 6 Most Carried 8 | 5 4 6 8 Average Carried 4 | 1 2 4 4 Final Capacity 8 | 8 8 8 5 Final Carried 6 | . 3 6 4 Class Distribution -------------------- 63% | Mutant 30% | Gunner 5% | Scavenger-Gunner Dominant Class ---------------- Mutant | -10/Materials Mutant | -10/Subcaves Gunner | -8/Materials Resources | -11 -10 -10 -8 ----------- Run | Yrd Mat Sub Mat Matter Collected 704 | 207 63 30 404 Remotely . | . . . . Salvage Created 1155 | . 173 132 850 Parts 49 | . 6 12 31 Haulers Intercepted . | . . . . Recyclers Shooed . | . . . . Parts Field Recycled . | . . . . Retrieved Matter . | . . . . Parts Self-Destructed 3 | . . 3 . Prevented . | . . . . Kills | -11 -10 -10 -8 ------- Run | Yrd Mat Sub Mat Combat Hostiles Destroyed 19 | . 2 4 13 Guns 1 | . . . 1 Cannons 16 | . 2 4 10 Classes Destroyed 10 | . 2 2 6 Worker 2 | . . . 2 Builder 1 | . . . 1 Recycler 1 | . 1 . . Mechanic 1 | . . . 1 Watcher 1 | . . . 1 Swarmer 2 | . . 2 . Grunt 10 | . 2 . 8 Sentry 2 | . . . 2 Hunter 3 | . . . 3 Subdweller 2 | . . 2 . Best Kill Streak 3 | . 2 2 3 Combat Bots Only 3 | . 2 2 3 Max Kills in Single Turn 2 | . 1 1 2 Gunslinging . | . . . . Exploded . | . . . . Melee . | . . . . Uniques/NPCs Destroyed . | . . . . Combat | -11 -10 -10 -8 -------- Run | Yrd Mat Sub Mat Hostile Shots Fired 141 | . 1 14 126 Missed 35 | . . 4 31 Hits 106 | . 1 10 95 Projectile 106 | . 1 10 95 Critical Strikes 3 | . . . 3 Damage Taken 1852 | . 14 99 1739 Core 515 | . . 18 497 Absorbed by Shields . | . . . . Ignored by Resistances 44 | . . . 44 Core Remaining (%) 96 | 100 . 92 . Volleys Fired 70 | . 5 11 54 Largest 3 | . 2 2 3 Hottest 196 | . 136 136 196 Shots Fired 126 | . 10 22 94 Gun 24 | . . . 24 Cannon 102 | . 10 22 70 Launcher . | . . . . Special . | . . . . Kinetic . | . . . . Thermal 98 | . 10 22 66 Explosive . | . . . . Electromagnetic 28 | . . . 28 Robot Hit Streak 13 | . 5 3 13 Robot Miss Streak 4 | . 2 4 3 Penetration Max . | . . . . Secondary Targets . | . . . . Shots Hit Robots 84 | . 6 10 68 Core Hits 45 | . 4 5 36 Critical Kills . | . . . . Critical Parts Destroyed . | . . . . Critical Strikes . | . . . . Melee Attacks . | . . . . Impact . | . . . . Slashing . | . . . . Piercing . | . . . . Sneak Attacks . | . . . . Combat Hostiles . | . . . . Follow-up Attacks . | . . . . Damage Inflicted 2014 | . 124 225 1665 Guns 469 | . . . 469 Cannons 1545 | . 124 225 1196 Explosions . | . . . . Melee . | . . . . Ramming . | . . . . Kinetic . | . . . . Thermal 1357 | . 124 225 1008 Explosive . | . . . . Electromagnetic 657 | . . . 657 Impact . | . . . . Slashing . | . . . . Piercing . | . . . . Highest Corruption . | . . . . Average Corruption . | . . . . Corruption Purged . | . . . . Corruption Blocked . | . . . . Overload Shots . | . . . . Overflow Damage 12 | . . . 12 Projectiles 12 | . . . 12 Explosions . | . . . . Melee . | . . . . Knockbacks . | . . . . Impact . | . . . . Kinetic . | . . . . Secondary . | . . . . Self-Inflicted Damage . | . . . . Shots . | . . . . Rammed . | . . . . Targets Rammed . | . . . . Kicked . | . . . . Crushed . | . . . . Highest Temperature 599 | . 234 90 599 Average Temperature 171 | . 91 43 205 Received Heat Transfer 588 | . 9 12 567 Effects 23 | . . . 23 Shutdowns 2 | . . . 2 Energy Bleed 1 | . . . 1 Interference 5 | . . . 5 Matter Decay 3 | . . . 3 Short Circuit 2 | . . . 2 Damage (minor) 1 | . . . 1 Damage (major) 8 | . . . 8 Damage (core) 1 | . . . 1 Siege Activations . | . . . . Martial Activations . | . . . . Shielding Activations . | . . . . Robots Disrupted . | . . . . Combat Hostiles . | . . . . Robots Corrupted 2 | . . . 2 Combat Hostiles 2 | . . . 2 Parts Fried 3 | . . . 3 Impact Corruptions . | . . . . Robots Melted . | . . . . Combat Hostiles . | . . . . Parts Melted . | . . . . Heat Transferred 2442 | . 222 407 1813 Parts Sabotaged . | . . . . Parts Stolen . | . . . . Parts Stripped . | . . . . Power Chain Reactions . | . . . . Alert | -11 -10 -10 -8 ------- Run | Yrd Mat Sub Mat Maximum Alert Level . | . . . . Low Security (%) 100 | 100 100 . 100 Level 1 . | . . . . Level 2 . | . . . . Level 3 . | . . . . Level 4 . | . . . . Level 5 . | . . . . High Security . | . . . . Max Security . | . . . . Peak Influence 127 | . 50 . 127 Initial . | . . . . Average 35 | . 18 . 39 Influence Increases 720 | . 85 40 595 Destroy 0b10 Robot/C 340 | . 40 40 260 Destroy 0b10 Robot/NC 30 | . 5 . 25 Destroy Leader 92 | . 10 . 82 Successful Hack 15 | . 15 . . Disable Machine 45 | . 15 . 30 Destroy Structure 3 | . . . 3 Lose Combat Pursuer 195 | . . . 195 Influence Decreases 667 | . 85 40 542 Time Decay 527 | . 85 40 402 Lost Part 140 | . . . 140 Squads Dispatched 4 | . . . 4 Investigation 1 | . . . 1 Extermination . | . . . . Reinforcement 3 | . . . 3 Assault . | . . . . Garrison . | . . . . Intercept . | . . . . Searches Triggered . | . . . . Construction Impeded . | . . . . Haulers Reinforced . | . . . . Active Scanning Responses . | . . . . Cargo Convoy Interrupts . | . . . . Stealth | -11 -10 -10 -8 --------- Run | Yrd Mat Sub Mat Distress Signals 1 | . 1 . . Communications Jammed . | . . . . Distress Signals . | . . . . Times Spotted 40 | . 4 5 31 Peak Tracking Total 5 | . 3 3 5 Tactical Retreats 6 | . . . 6 Traps | -11 -10 -10 -8 ------- Run | Yrd Mat Sub Mat Traps Triggered . | . . . . Indirectly . | . . . . Trap Hack Attempts . | . . . . Triggered . | . . . . Disarmed . | . . . . Reprogrammed . | . . . . Reused . | . . . . Traps Extracted . | . . . . Installed . | . . . . Triggered . | . . . . Machines | -11 -10 -10 -8 ---------- Run | Yrd Mat Sub Mat Machines Disabled 3 | . 1 . 2 Max in Single Turn 1 | . 1 . 1 Machines Repaired . | . . . . Machines Dismantled . | . . . . Machines Sabotaged . | . . . . Overloaded Fab Kills . | . . . . Hacking | -11 -10 -10 -8 --------- Run | Yrd Mat Sub Mat Machines Accessed 2 | . 1 . 1 Terminals 2 | . 1 . 1 Fabricators . | . . . . Repair Stations . | . . . . Recycling Units . | . . . . Scanalyzers . | . . . . Garrison Access . | . . . . Total Hacks 6 | . 3 . 3 Successful 4 | . 2 . 2 Failed 2 | . 1 . 1 Catastrophic 1 | . . . 1 Database Lockouts . | . . . . Manual 4 | . 2 . 2 Terminals 6 | . 3 . 3 Fabricators . | . . . . Repair Stations . | . . . . Recycling Units . | . . . . Scanalyzers . | . . . . Garrison Access . | . . . . Terminal Hacks 2 | . 1 . 1 Record 1 | . . . 1 Level Access Points 1 | . 1 . . Fabricator Hacks . | . . . . Repair Station Hacks . | . . . . Recycling Unit Hacks . | . . . . Scanalyzer . | . . . . Garrison Access Hacks . | . . . . Unauthorized Hacks 2 | . 1 . 1 Terminals 2 | . 1 . 1 Assimilate 2 | . 1 . 1 Fabricators . | . . . . Repair Stations . | . . . . Recycling Units . | . . . . Scanalyzers . | . . . . Garrison Access . | . . . . Data Cores Recovered . | . . . . Used . | . . . . Hacking Detections 2 | . 1 . 1 Full Trace Events 2 | . 1 . 1 Feedback Events . | . . . . Feedback Blocked . | . . . . Robot Schematics Acquired . | . . . . Robots Built . | . . . . Authchips . | . . . . Time . | . . . . Total Robot Build Rating . | . . . . Part Schematics Acquired . | . . . . Parts Built . | . . . . Authchips . | . . . . Time . | . . . . Total Part Build Rating . | . . . . Parts Repaired . | . . . . Time . | . . . . Parts Recycled . | . . . . Recycled Matter . | . . . . Retrieved Matter . | . . . . Retrieved Components . | . . . . Parts Scanalyzed . | . . . . Part Schematics Acquired . | . . . . Parts Damaged . | . . . . Bothacking | -11 -10 -10 -8 ------------ Run | Yrd Mat Sub Mat Used RIF Installer . | . . . . Robots Hacked . | . . . . Non-combat . | . . . . Combat . | . . . . Robot Hacks Applied . | . . . . Relay Couplers Released . | . . . . Fabnet Peak Effective % . | . . . . Robots Rewired . | . . . . Allies Hacked . | . . . . Hacks Repelled . | . . . . Allies | -11 -10 -10 -8 -------- Run | Yrd Mat Sub Mat Total Allies . | . . . . Largest Group . | . . . . Highest-Rated Group . | . . . . Highest-Rated Ally . | . . . . Total Orders . | . . . . Ally Attacks . | . . . . Total Damage . | . . . . Kills . | . . . . Allies Corrupted . | . . . . Allies Melted . | . . . . Intel | -11 -10 -10 -8 ------- Run | Yrd Mat Sub Mat Active Infowar (turns) 1315 | . 17 624 674 Optics 299 | . . . 299 Sensors 1016 | . 17 624 375 Robot Analysis Total . | . . . . Derelict Logs Recovered 1 | . . 1 . Drone Launches . | . . . . Drone Recoveries . | . . . . Exploration | -11 -10 -10 -8 ------------- Run | Yrd Mat Sub Mat Turns Passed 2203 | 43 224 624 1312 Spaces Moved 1768 | 44 199 546 979 Core 47 | 20 . . 27 Treads 23 | . . . 23 Legs . | . . . . Wheels 1698 | 24 199 546 929 Hover . | . . . . Flight . | . . . . Fastest Speed 50 | 50 100 100 80 Average Speed 102 | 77 100 107 101 Slowest Speed 350 | 100 100 110 350 Overloaded Moves . | . . . . Propulsion Burnouts . | . . . . Robots Hopped . | . . . . Potential Cave-ins . | . . . . Cave-ins Triggered . | . . . . Exploration Rate (%) 28 | 4 25 49 37 Regions Visited 3 Branch Regions 1 Pre-discovered Areas . | . . . . Known Exits Taken . | . . . . Unknown Exits Taken 3 | 1 1 1 . Scrap Searched . | . . . . Spaces Dug . | . . . . Terrain Destroyed 2 | . . . 2 Melee . | . . . . Projectile 2 | . . . 2 AOE . | . . . . Terrain Rammed . | . . . . Walls Destroyed . | . . . . Machines Disabled . | . . . . Actions | -11 -10 -10 -8 --------- Run | Yrd Mat Sub Mat Total 2038 | 53 214 562 1209 Wait 114 | . 1 1 112 Move 1765 | 43 198 545 979 Hop . | . . . . Pick Up 38 | 5 6 3 24 Fast Attach . | . . . . Attach 26 | 5 2 . 19 Detach 2 | . . . 2 Swap 16 | . 1 2 13 Drop 7 | . 1 . 6 Fire 70 | . 5 11 54 Melee . | . . . . Ram . | . . . . Kick . | . . . . Crush . | . . . . Escape Stasis . | . . . . Rewire . | . . . . Trap . | . . . . Miscellaneous . | . . . . Route ------- -11/Scrapyard -10/Materials (discovered 5 exits: Mat x3 / [*Min] / [*Sub]) -10/Subcaves -8/Materials (discovered 1 exit: [*Fac]) History --------- Turn | Location | Event 14 | -11/Scrapyard | Discovered new exit (range 16) 44 | -11/Scrapyard | Entered Materials 147 | -10/Materials | Identified exit to Materials 223 | -10/Materials | Discovered new exit (range 9) 246 | -10/Materials | Discovered new exit (range 12) 268 | -10/Materials | Entered Subcaves 301 | -10/Subcaves | Shifting Twisted Machinery released Sub. Monowheel 310 | -10/Subcaves | Build established: Mutant 320 | -10/Subcaves | Shifting Twisted Machinery released Sub. Monowheel 843 | -10/Subcaves | A swath of the cavern ceiling suddenly collapsed 863 | -10/Subcaves | Learned 2 Materials zone layouts 865 | -10/Subcaves | Discovered new exit (range 10) 892 | -10/Subcaves | Entered Materials 892 | -8/Materials | Evolved 4 slots: Propulsion x2, Utility x1, Weapon x1 1266 | -8/Materials | Lost 6 parts (1p3n2w) 1524 | -8/Materials | Core integrity fell below 50% 1661 | -8/Materials | Discovered new exit (range 16) 1741 | -8/Materials | Lost 6 parts (2n2u2w) 1812 | -8/Materials | Core integrity fell below 20% 2140 | -8/Materials | Build established: Gunner 2204 | -8/Materials | Self-destructed Last Messages --------------- 01811_ Penetrated by Slug. 01836_ Acquired EM Pulse Cannon. 01869_ Acquired 26 matter. 01873_ Acquired 4 matter. 01958_ Destroyed Imp. Hover Unit. 01958_ W-25 Informer destroyed. 02107_ G-47 Trooper destroyed. 02112_ Penetrated by Slug. 02112_ Lgt. Angular Momentum Engine destroyed. 02112_ U-05 Engineer builds a Wall. 02112_ Acquired Wheel. 02116_ Acquired 2 matter. 02117_ Acquired 8 matter. 02122_ Acquired 10 matter. 02131_ Slug penetrates Wall. 02131_ Wheel destroyed. 02132_ K-01 Serf collects debris. 02172_ ALERT: Hostiles spotted, dispatching reinforcements to Terminal M002. 02203_ G-47 Trooper misfires. Map ----- +----------------------------------------------------+ | # ## ????????????????????????? | | # ## ????????????????????????? | | # ## ######????????????????????????? | | # + # ????????????????????????? | | # ## + ""????????????????????????? | | # ## # ""????????????????????????? | | # ## # ""????????????????????????? | | #####+##### # ????????????????????????? | | # ????????????????????????? | | # ?????????????#####??????? | | ######?????????????# #??????? | | #### ########??????????????????# < #??????? | | # #?????????????????????????# #??????? | | # #####????????????????????## #??????? | | ???????????????????????????????? #??????? | | ????????????????????????????????? %[+??????? | | ?????????????????????????##?????? %#??????? | | ???????????????????????########### *#??????? | | ???????????????????????#% # #??????? | | ???????????????????????# ! # #??????? | | ???????????????????????# + #??????? | | ???????????????????????#g""" """ # #??????? | | ???????????????????????# """ """ # #??????? | | ???????????????????????# """ """|#% #??????? | | ???????????????????????# g H # #??????? | | ???????????????????????# @ g # %%#??????? | | ???????????????????????########### ##?????? | | ?????????????????????????????????# #??????? | | ?????????????????????????????????#!%%#??????? | | ?????????????????????????????????#% #??????? | | ????????????????????????????????##% ##?????? | | ?????????????????????????######## % #?????? | | ?????????????????????????# % #?????? | | ?????????????????????????# =% #?????? | | ?????????????????????????# #?????? | | ?????????????????????????# #### #?????? | | ?????????????????????????# #??#######?????? | | ?????????????????????????# #??? #????????? | | ?????????????????????????# #""" #????????? | | ?????????????????????????# #""" =#????????? | | ?????????????????????????# #""" #????????? | | ?????????????????????????# #""" ########## | | ??????????????????######## #""" ##] # | | ????##########????# # # ## # | | ????# #????# # #! ?# # | | ????# [ """ #????# """ + ###+#### # | | ????# "T" #????# """ # !! ^ # !! # | | ????# #????# """ # ! + !] # | | ????# #????# # T # !] # | | ????# """ #????######## # # | +----------------------------------------------------+ Best States ------------- Heat Dissipation 31 Energy Generation 18 Energy Capacity 250 Matter Stores 300 Matter Capacity 300 Sight Range 20 Robot Scan Range 14 Terrain Scan Density 10 Armor Coverage 150 Resistance: TH 10 Evasion (%) 50 Targeting Accuracy 24 Recoil Reduction 1 Item Schematics ----------------- None Robot Schematics ------------------ None Fabricated ------------ Nothing Repaired ---------- Nothing Alien Tech Used ----------------- None Achievements -------------- None Challenges ------------ None Game ------ Seed TitaniumOvertunedStorm Manual? 0 Play Time 00:35:17 Cumulative 9.5 hours Start 2025.08.15 @ 16:01:08 End 2025.08.15 @ 18:04:35 Sessions 1 Manual Loads 0 Difficulty Rogue Special Mode None Game No. 29 Rogue 23 Adventurer 6 Explorer 0 Win Type - Total 0 Types 0/0/0/0/0/0/0/0/0/0 Lore% 6 Gallery% 15 Achievement% 16 Wizard Run 0 Options --------- Layout 0 ASCII 0 Keyboard 1 Movement Numpad Keybinds 0 Fullscreen 1 Font 24/Proggy Map View 76x50 Zoom Use 0% Tactical HUD 1 Map Filters NONE Filters NONE Steam 1 RUN: 515a944f-1739-48d9-81ac-0547adf79442